bitfinex/quotes_ETHUSD_20251017
["timestamp","ask_amount","ask_price","bid_price","bid_amount"]
[1760694574231,0.04656079,3744.1,3744.0,2.67094017]
[1760694574438,0.002,3744.5,3744.0,2.67094017]
[1760694574935,0.002,3744.5,3743.5,2.67129691]
[1760694575264,0.002,3744.5,3743.6,2.99032839]
[1760694575421,0.002,3744.5,3744.2,2.67074682]
[1760694575622,0.002,3744.5,3743.7,2.6711542]
[1760694575921,0.002,3744.5,3744.4,2.67065484]
[1760694576121,0.002,3744.5,3744.2,2.67074523]
[1760694576435,0.002,3744.5,3744.4,2.67065484]
[1760694576599,0.002,3744.5,3744.2,2.67078117]
[1760694577038,0.42094629,3744.5,3744.3,2.67070385]
[1760694577216,0.42094629,3744.5,3744.3,2.67068527]
[1760694577413,0.42094629,3744.5,3744.2,2.67077028]
[1760694577935,0.42094629,3744.5,3744.3,2.67071598]
[1760694578100,3.11977446,3744.4,3743.6,0.31915318]
[1760694578307,0.4491,3744.4,3743.4,2.67130488]
[1760694578605,3.11981639,3744.4,3743.3,0.33883487]
[1760694578915,0.4491,3744.4,3743.3,0.33883487]
[1760694579104,0.46750068,3744.5,3743.0,0.001]
[1760694579438,0.002,3744.5,3744.4,2.67065484]
[1760694579639,0.002,3744.5,3744.4,2.85205484]
[1760694580609,0.002,3744.5,3744.4,2.67065484]
[1760694580837,0.002,3744.5,3744.4,3.20479419]
[1760694581036,0.002,3744.5,3744.4,3.38619419]
[1760694581236,0.002,3744.5,3744.4,3.51899419]
[1760694581444,0.002,3744.5,3743.9,0.1814]
[1760694581649,0.002,3744.5,3744.4,2.67065484]
[1760694582053,0.002,3744.5,3744.4,2.85205484]
[1760694583245,0.002,3744.5,3744.4,39.52315273]
[1760694583552,0.002,3744.5,3744.4,4.58005484]
[1760694583712,0.002,3744.5,3744.4,3.85633417]
[1760694584062,0.002,3744.5,3744.4,2.67065484]
[1760694584211,0.002,3744.5,3744.2,1.728]
[1760694584408,0.002,3744.5,3744.2,1.9094]
[1760694584609,0.0012,3744.5,3744.4,2.67065484]
[1760694585051,0.0012,3744.5,3744.4,2.85205484]
[1760694585250,0.0012,3744.5,3744.4,5.58433294]
[1760694585447,0.0012,3744.5,3744.4,6.21793294]
[1760694587314,0.0012,3744.5,3744.4,14.30509194]
[1760694587510,0.0012,3744.5,3744.4,9.17074394]
[1760694588350,0.0012,3744.5,3744.4,9.24583094]
[1760694588553,0.0012,3744.5,3744.4,6.03653294]
[1760694589046,0.0012,3744.5,3744.4,6.21793294]
[1760694589861,0.0012,3744.5,3744.4,6.03653294]
[1760694590067,0.0012,3744.5,3744.4,5.40293294]
[1760694591378,0.0012,3744.5,3744.4,2.67065484]
[1760694591679,0.0012,3744.5,3744.4,2.80345484]
[1760694592484,0.0012,3744.5,3744.4,5.37316138]
[1760694592776,0.0012,3744.5,3744.4,5.34645484]
[1760694593646,0.0012,3744.5,3744.4,8.58670284]
[1760694593943,0.0012,3744.5,3744.4,9.99164574]
[1760694594343,0.0012,3744.5,3744.4,9.55395474]
[1760694594553,0.0012,3744.5,3744.4,11.89089374]
[1760694594769,0.0012,3744.5,3744.4,10.33689374]
[1760694595575,0.0012,3744.5,3744.4,14.31072274]
[1760694595753,0.0012,3744.5,3744.4,12.75672274]
[1760694596476,0.0012,3744.5,3744.4,10.08198074]
[1760694596690,0.0012,3744.5,3744.4,22.02344274]
[1760694597080,0.0012,3744.5,3744.4,15.09043374]
[1760694597398,0.0012,3744.5,3744.4,13.04196574]
[1760694597904,0.0012,3744.5,3744.4,28.61131074]
[1760694598665,0.0012,3744.5,3744.4,32.77516074]
[1760694598869,0.0012,3744.5,3744.4,32.40307874]
[1760694599505,0.0012,3744.5,3744.4,30.84907874]
[1760694599716,0.0012,3744.5,3744.4,29.66715974]
[1760694600021,0.0012,3744.5,3744.4,17.20949274]
[1760694600177,0.0012,3744.5,3744.4,8.72539774]
[1760694600376,0.0012,3744.5,3744.4,5.45965484]
[1760694600684,0.0012,3744.5,3744.4,11.75556784]
[1760694600980,0.0012,3744.5,3744.4,49.28582936]
[1760694601394,0.0012,3744.5,3744.4,46.07373536]
[1760694602009,0.0012,3744.5,3744.4,48.15054336]
[1760694602309,0.0012,3744.5,3744.4,49.48521889]
[1760694602705,0.4509,3746.9,3746.8,2.66894416]
[1760694603373,0.4509,3746.9,3746.4,2.786]
[1760694603573,0.4509,3746.8,3746.0,0.02669514]
[1760694603775,0.4509,3746.8,3746.7,2.6690154]
[1760694604221,0.4509,3746.8,3746.2,2.786]
[1760694604421,0.4509,3746.7,3745.8,2.787]
[1760694604621,2.71530701,3747.1,3745.8,2.787]
[1760694604622,0.2269,3745.9,3745.8,2.787]
[1760694604826,0.6756,3745.9,3745.8,5.45664399]
[1760694605523,0.2265,3747.0,3746.9,2.66887293]
[1760694605686,0.2265,3747.0,3746.3,2.789]
[1760694605889,0.2265,3747.0,3746.9,2.66887293]
[1760694606217,0.2265,3747.0,3746.3,2.789]
[1760694606423,0.4487,3746.9,3746.6,2.66901932]
[1760694606618,0.4487,3746.8,3746.7,2.6689581]
[1760694608041,0.4487,3746.8,3746.4,2.788]
[1760694608189,0.2265,3747.0,3746.4,2.788]
[1760694608190,0.2265,3747.0,3746.9,2.66887293]
[1760694608388,0.2257,3747.0,3746.9,2.66887293]
[1760694608809,0.6744,3747.0,3746.9,2.66887293]
[1760694609092,0.6744,3747.0,3746.4,2.788]
[1760694609290,0.2257,3747.0,3746.9,2.66887293]
[1760694609907,0.6744,3747.0,3746.9,2.66887293]
[1760694610291,0.418662,3747.2,3747.1,2.66873048]
[1760694610821,0.2186,3747.3,3747.2,2.66865926]
[1760694611325,0.6651,3747.3,3747.2,2.66865926]
[1760694611721,0.4465,3747.8,3747.7,2.66830322]
[1760694612940,0.49071183,3748.1,3748.0,2.66808964]
[1760694614122,0.442,3748.6,3748.3,2.6678761]
[1760694614521,0.002,3748.8,3748.3,2.67632285]
[1760694614727,0.002,3748.8,3748.3,2.8006761]
[1760694615626,0.002,3748.8,3748.3,5.5836761]
[1760694615826,0.442,3748.7,3748.3,5.5836761]
[1760694616350,0.444,3748.4,3746.7,0.1583]
[1760694616512,0.31117556,3748.3,3747.7,0.1328]
[1760694616715,0.2231,3747.8,3747.7,2.8010776]
[1760694617035,0.6629,3747.8,3747.7,2.8010776]
[1760694617716,0.6629,3747.8,3747.7,0.1328]
[1760694617943,0.6629,3747.8,3747.5,5.45039223]
[1760694618152,0.4398,3747.7,3747.6,2.66837442]
[1760694618323,0.4398,3747.7,3747.5,2.66837844]
[1760694618536,0.4398,3747.6,3747.4,2.66849263]
[1760694618746,0.4398,3747.6,3747.5,2.66844563]
[1760694620053,0.2231,3747.8,3747.6,2.66837442]
[1760694620261,0.2231,3747.8,3747.5,2.66844563]
[1760694620469,0.4398,3747.7,3747.3,0.1328]
[1760694620660,2.8913851,3747.8,3746.9,2.66881803]
[1760694620868,0.55594803,3747.7,3746.9,2.80166804]
[1760694621036,0.6629,3747.8,3747.3,2.66857125]
[1760694621237,0.4398,3747.7,3747.5,2.6684346]
[1760694621453,0.4398,3747.6,3747.5,2.6684346]
[1760694621939,0.2231,3747.8,3747.5,2.6684346]
[1760694622141,0.2231,3747.8,3747.3,0.1328]
[1760694622373,0.2231,3747.8,3747.7,2.66830322]
[1760694622867,0.04651329,3748.0,3747.9,2.66816083]
[1760694623173,0.002,3748.4,3748.3,2.6678761]
[1760694624059,0.002,3748.4,3748.3,2.8006761]
[1760694627047,0.002,3748.4,3748.3,0.1328]
[1760694627242,0.4534,3748.4,3748.0,2.9078]
[1760694627449,0.4514,3748.3,3747.8,2.66821572]
[1760694627784,0.002,3748.4,3748.3,2.6678761]
[1760694627954,0.4534,3748.4,3748.3,2.6678761]
[1760694628281,0.4534,3748.4,3747.6,5.44333479]
[1760694628282,0.002,3748.4,3747.9,2.9078]
[1760694628466,0.002,3748.4,3748.3,2.6678761]
[1760694628844,0.002,3748.4,3748.3,2.8006761]
[1760694630079,0.002,3748.4,3748.3,3.2426761]
[1760694630575,0.002,3748.4,3748.3,2.8006761]
[1760694631559,0.002,3748.4,3748.3,2.6678761]
[1760694632173,0.455,3748.4,3747.0,0.442]
[1760694632374,0.455,3748.4,3748.1,2.66801692]
[1760694632681,0.4538,3748.3,3748.2,2.66793634]
[1760694632857,0.4538,3748.3,3748.1,2.66801486]
[1760694633056,0.0012,3748.4,3748.1,2.66801486]
[1760694633057,0.4538,3748.2,3748.1,2.66801846]
[1760694633273,0.0012,3748.4,3748.1,2.66801846]
[1760694633274,0.0012,3748.4,3748.2,2.66790609]
[1760694633473,0.0012,3748.4,3748.3,2.6678761]
[1760694633779,0.0012,3748.4,3748.1,0.1328]
[1760694634083,0.0012,3748.4,3748.3,2.6678761]
[1760694634507,0.0012,3748.4,3748.1,0.1328]
[1760694634666,0.4538,3748.3,3748.1,2.66798665]
[1760694634990,0.4538,3748.2,3747.8,0.1328]
[1760694635183,0.0012,3748.4,3747.9,2.66811316]
[1760694635381,0.4538,3748.1,3747.9,2.66811316]
[1760694635558,0.4538,3748.0,3747.9,2.66811316]
[1760694635961,0.0012,3748.4,3748.3,2.6678761]
[1760694636386,0.455,3748.4,3747.9,2.66809094]
[1760694636589,0.4538,3748.3,3747.6,5.57315379]
[1760694636791,0.4538,3748.3,3747.8,2.66819891]
[1760694636988,0.7660784,3748.3,3747.8,2.66819891]
[1760694637192,0.2189,3747.9,3747.8,2.66823202]
[1760694637561,0.466242,3748.4,3748.0,2.66804518]
[1760694637769,0.4515,3748.3,3747.3,0.1328]
[1760694638290,2.66796606,3748.2,3747.3,2.80138805]
[1760694638497,1.07220116,3748.1,3747.3,2.80138805]
[1760694638691,1.07220116,3748.1,3747.4,2.66851683]
[1760694638893,1.07220116,3748.1,3747.7,2.66828798]
[1760694639093,0.4515,3748.0,3747.7,2.66828798]
[1760694639293,0.62070116,3748.1,3747.3,0.1328]
[1760694639496,0.2193,3747.4,3746.3,0.1613]
[1760694639664,0.2193,3747.9,3747.3,0.001]
[1760694640065,0.2193,3747.9,3747.4,2.66851683]
[1760694640505,0.2193,3747.9,3747.6,2.66831979]
[1760694640794,0.2193,3747.9,3747.5,2.66840582]
[1760694641198,0.2193,3747.9,3747.7,2.66825537]
[1760694641387,0.2193,3747.9,3747.6,2.6683542]
[1760694641798,0.2193,3747.9,3747.3,0.001]
[1760694642005,0.4511,3748.3,3747.7,2.66825985]
[1760694642188,0.2193,3747.9,3747.3,0.001]
[1760694642593,0.6704,3747.9,3747.4,2.66851683]
[1760694642815,0.4511,3747.8,3747.4,2.66851683]
[1760694643122,0.4511,3747.7,3747.5,2.66843336]
[1760694643284,0.2193,3747.9,3747.5,2.66843336]
[1760694643285,0.4511,3747.6,3747.5,2.66843336]
[1760694643616,0.63788161,3747.9,3747.6,2.66836851]
[1760694643812,1.08898161,3747.9,3747.6,2.66836851]
[1760694644115,1.08898161,3747.9,3747.3,2.66958474]
[1760694644116,0.4511,3747.8,3747.3,2.66958474]
[1760694644283,3.1193494,3747.8,3747.3,0.001]
[1760694644485,0.4456,3747.7,3747.3,0.001]
[1760694644686,3.11391335,3747.7,3747.3,0.001]
[1760694644900,2.66849633,3747.5,3747.3,0.001]
[1760694645184,2.66851683,3747.4,3747.3,0.001]
[1760694645388,3.11411683,3747.4,3747.3,0.001]
[1760694645914,3.06108586,3747.4,3747.3,0.001]
[1760694646900,4.78908586,3747.4,3747.3,0.001]
[1760694647401,4.92240068,3747.4,3747.3,0.001]
[1760694647599,6.41476539,3747.4,3747.3,0.001]
[1760694647782,6.4612948,3747.4,3747.3,0.001]
[1760694648601,3.3024017,3747.0,3746.9,0.001]
[1760694648930,31.68542248,3747.0,3746.9,0.001]
[1760694649133,2.66969035,3745.8,3744.9,0.1642]
[1760694649359,2.66984619,3745.6,3744.6,0.1642]
[1760694649557,0.6601,3745.7,3745.0,2.67016311]
[1760694649763,0.2145,3745.7,3744.6,0.297]
[1760694649912,0.2145,3745.7,3744.6,0.1328]
[1760694649913,2.67002532,3745.3,3744.6,0.1328]
[1760694650118,2.67002532,3745.3,3744.4,0.001]
[1760694650119,0.4456,3745.3,3744.4,0.001]
[1760694650314,3.1156329,3745.3,3744.4,0.001]
[1760694650543,2.67008973,3745.2,3744.4,0.001]
[1760694650747,2.67008973,3745.2,3744.5,2.67058352]
[1760694651047,0.4456,3745.3,3744.4,0.001]
[1760694651266,0.4456,3745.1,3744.4,0.001]
[1760694651440,2.67024048,3745.0,3744.4,0.001]
[1760694651755,0.4456,3745.1,3744.4,0.001]
[1760694651924,0.49214914,3745.1,3744.5,2.67053249]
[1760694652125,2.67027589,3745.0,3744.4,0.001]
[1760694652659,0.2141,3744.9,3744.4,2.67163306]
[1760694652951,0.4519,3744.8,3744.4,0.001]
[1760694653168,0.79017809,3744.8,3744.4,0.001]
[1760694653343,2.67057104,3744.6,3744.4,0.001]
[1760694653729,0.4519,3744.5,3744.4,0.001]
[1760694654063,3.12248352,3744.5,3744.4,0.001]
[1760694654571,3.54145465,3744.5,3744.4,0.001]
[1760694654771,4.16264487,3744.5,3744.4,0.001]
[1760694654934,5.89064487,3744.5,3744.4,0.001]
[1760694655267,0.2141,3744.9,3744.4,0.001]
[1760694655570,2.8844168,3744.9,3744.4,0.001]
[1760694655780,0.4519,3744.8,3744.4,0.001]
[1760694656145,2.88360845,3744.9,3744.4,0.001]
[1760694656344,0.4519,3744.7,3744.4,0.001]
[1760694656562,0.2133,3744.9,3744.4,0.001]
[1760694657178,0.4519,3744.8,3744.4,0.001]
[1760694657476,3.12228406,3744.8,3744.4,0.001]
[1760694657691,2.93016373,3744.9,3744.4,0.001]
[1760694657987,0.4519,3744.7,3744.4,0.001]
[1760694658345,2.67038027,3744.8,3744.4,0.001]
[1760694658777,3.12228027,3744.8,3744.4,0.001]
[1760694658981,0.4519,3744.7,3744.4,0.001]
[1760694659176,2.67056718,3744.6,3744.4,0.001]
[1760694659376,2.67058352,3744.5,3744.4,0.001]
[1760694659674,5.48408352,3744.5,3744.4,0.001]
[1760694659991,2.14699806,3744.5,3744.4,0.001]
[1760694660159,2.19355502,3744.5,3744.4,0.001]
[1760694660484,0.04655696,3744.5,3744.4,0.001]
[1760694661260,0.04655696,3744.5,3744.4,3.16286138]
[1760694661459,0.04655696,3744.5,3744.4,1.06507446]
[1760694661884,0.04655696,3744.5,3744.4,0.60057446]
[1760694662068,0.04655696,3744.5,3744.4,0.001]
[1760694662761,2.71714048,3744.5,3744.4,0.001]
[1760694662960,3.16904048,3744.5,3744.4,0.001]
[1760694663164,2.71714048,3744.5,3744.4,0.001]
[1760694663365,4.44514048,3744.5,3744.4,0.001]
[1760694663685,2.52801814,3744.5,3744.4,0.001]
[1760694663872,1.77455696,3744.5,3744.4,0.001]
[1760694664587,0.04655696,3744.5,3744.4,0.001]
[1760694665551,0.04655696,3744.5,3744.4,2.67165484]
[1760694666276,2.67028787,3745.0,3744.4,0.001]
[1760694666868,2.67024193,3745.0,3744.4,2.67163501]
[1760694667069,4.39818202,3745.1,3744.4,2.67163501]
[1760694667265,4.39818202,3745.1,3744.4,2.67160133]
[1760694667266,2.67016321,3745.1,3744.4,2.67160133]
[1760694667672,2.67043969,3744.8,3744.4,0.001]
[1760694667875,2.67022696,3745.0,3744.4,0.001]
[1760694667876,2.67045208,3744.7,3744.4,0.001]
[1760694668068,2.67039484,3744.8,3744.4,0.001]
[1760694668284,2.67031479,3744.9,3744.4,0.001]
[1760694668487,3.10436406,3745.1,3744.4,0.001]
[1760694668688,2.670341,3744.9,3744.4,0.001]
[1760694669206,2.67049206,3744.7,3744.4,0.001]
[1760694669365,0.41892158,3744.8,3744.4,0.001]
[1760694669366,3.52350508,3744.8,3744.4,0.001]
[1760694669565,2.67056411,3744.6,3744.4,0.001]
[1760694669874,2.67058352,3744.5,3744.4,0.001]
[1760694670265,3.10478352,3744.5,3744.4,0.001]
[1760694670475,5.44046103,3744.5,3744.4,0.001]
[1760694670885,2.33567751,3744.5,3744.4,0.001]
[1760694671100,1.728,3744.5,3744.4,0.001]
[1760694671401,0.46547925,3744.8,3744.4,0.001]
[1760694672000,3.10470035,3744.7,3744.4,0.001]
[1760694672167,0.4342,3744.7,3744.4,0.001]
[1760694672364,3.13587567,3744.8,3744.4,0.001]
[1760694672581,1.728,3744.7,3744.4,0.001]
[1760694672781,2.67044917,3744.7,3744.4,0.001]
[1760694672997,2.67053543,3744.6,3744.4,0.001]
[1760694673178,2.67058352,3744.5,3744.4,0.001]
[1760694673378,3.10478352,3744.5,3744.4,0.001]
[1760694674193,4.83278352,3744.5,3744.4,0.001]
[1760694674772,4.39858352,3744.5,3744.4,0.001]
[1760694675007,3.93326272,3744.5,3744.4,0.001]
[1760694675484,0.8284792,3744.5,3744.4,0.001]
[1760694675675,4.39852388,3744.6,3744.4,0.001]
[1760694675869,3.10478352,3744.5,3744.4,0.001]
[1760694676667,2.67058352,3744.5,3744.4,0.001]
[1760694677076,3.10478352,3744.5,3744.4,0.001]
[1760694677781,3.15134447,3744.5,3744.4,0.001]
[1760694677978,3.5140157,3744.5,3744.4,0.001]
[1760694678171,3.9482157,3744.5,3744.4,0.001]
[1760694679269,3.16015484,3744.5,3744.4,0.001]
[1760694679675,3.59355484,3744.5,3744.4,0.001]
[1760694680691,3.15935484,3744.5,3744.4,0.001]
[1760694681004,0.04656095,3744.5,3744.4,0.001]
[1760694681702,0.04656095,3744.5,3744.4,0.4327]
[1760694682078,0.04656095,3744.5,3744.4,3.10335484]
[1760694683012,0.002,3744.9,3744.4,3.10335484]
[1760694683168,0.002,3744.9,3744.5,0.4317]
[1760694683369,0.002,3744.9,3744.6,2.67045333]
[1760694683568,0.002,3744.9,3744.6,3.10215333]
[1760694683772,0.002,3744.9,3744.7,0.4317]
[1760694684008,0.002,3744.9,3744.5,2.98090436]
[1760694684009,0.002,3744.9,3744.5,0.3103406]
[1760694684305,0.4691,3744.8,3744.4,0.001]
[1760694684468,0.4691,3744.7,3744.4,0.001]
[1760694684674,2.67058352,3744.5,3744.4,0.001]
[1760694685074,3.13968352,3744.5,3744.4,0.001]
[1760694685692,0.41898752,3744.8,3744.4,0.001]
[1760694686092,2.6704865,3744.7,3744.4,0.001]
[1760694686296,0.41898752,3744.8,3744.4,0.001]
[1760694686680,1.73,3744.9,3744.4,0.4327]
[1760694686878,0.002,3744.9,3744.4,0.001]
[1760694687095,0.41893724,3744.8,3744.4,0.28438864]
[1760694687302,0.41893724,3744.8,3744.4,0.4327]
[1760694687710,0.41893724,3744.8,3744.4,3.10333815]
[1760694688812,0.41893724,3744.8,3744.5,3.10225708]
[1760694688988,0.41893724,3744.8,3744.5,3.1022391]
[1760694689189,0.41893724,3744.8,3744.6,0.4317]
[1760694689507,0.41893724,3744.8,3744.7,0.31032545]
[1760694690009,0.41893724,3744.8,3744.7,0.74202545]
[1760694690499,0.41893724,3744.8,3744.7,0.31032545]
[1760694690704,0.41893724,3744.8,3744.4,0.001]
[1760694690929,0.002,3744.9,3744.5,2.67058352]
[1760694691434,0.002,3744.9,3744.5,0.4317]
[1760694691595,0.002,3744.9,3744.4,2.67165065]
[1760694691596,0.002,3744.9,3744.6,0.4317]
[1760694691805,0.002,3744.9,3744.8,2.67036957]
[1760694691991,0.002,3744.9,3744.8,3.26357219]
[1760694692191,0.002,3744.9,3744.8,3.69527219]
[1760694692801,0.002,3744.9,3744.8,6.05687219]
[1760694692990,0.002,3744.9,3744.8,6.18967219]
[1760694693824,1e-08,3745.3,3745.2,3.30368437]
[1760694694128,1e-08,3745.3,3745.2,8.78773634]
[1760694694423,1e-08,3745.3,3745.2,6.4297355]
[1760694694627,1e-08,3745.3,3745.2,9.1927355]
[1760694694927,1e-08,3745.3,3745.2,6.4297355]
[1760694695101,1e-08,3745.3,3745.2,9.0599355]
[1760694695293,1e-08,3745.3,3745.2,6.2969355]
[1760694695621,1e-08,3745.3,3745.2,8.4263355]
[1760694696835,1e-08,3745.3,3745.2,9.0599355]
[1760694697893,1e-08,3745.3,3745.2,5.8652355]
[1760694698103,1e-08,3745.3,3745.2,8.4263355]
[1760694699041,1e-08,3745.3,3745.2,9.0599355]
[1760694702643,1e-08,3745.3,3745.2,8.4253355]
[1760694702942,1e-08,3745.3,3745.2,9.0589355]
[1760694703312,0.00120001,3745.7,3745.6,3.30339923]
[1760694703653,0.00120001,3745.7,3745.6,8.59022555]
[1760694703849,0.00120001,3745.7,3745.6,8.99522756]
[1760694704347,0.00120001,3745.7,3745.6,8.56352756]
[1760694704716,0.00120001,3745.7,3745.6,8.99522756]
[1760694705153,0.00120001,3745.7,3745.6,9.12802756]
[1760694711775,0.00120001,3745.7,3745.6,11.94302756]
[1760694712365,0.00120001,3745.7,3745.6,26.19545556]
[1760694712569,0.00120001,3745.7,3745.6,21.57951556]
[1760694713082,0.00120001,3745.7,3745.6,8.56252756]
[1760694713379,0.00120001,3745.7,3745.6,7.92892756]
[1760694713572,0.00120001,3745.7,3745.6,9.02972756]
[1760694714150,0.00120001,3745.7,3745.6,22.63235056]
[1760694714578,0.00120001,3745.7,3745.6,16.73791056]
[1760694715067,0.4383,3746.9,3746.8,2.66894416]
[1760694715266,0.4383,3746.9,3746.8,4.93074119]
[1760694715662,0.002,3746.9,3746.8,4.93074119]
[1760694716062,0.4383,3746.9,3746.8,4.93074119]
[1760694717352,0.4383,3746.9,3746.8,4.39694416]
[1760694720197,0.002,3746.9,3746.8,4.39694416]
[1760694721081,0.4383,3746.9,3746.8,4.39694416]
[1760694722210,0.002,3746.9,3746.8,4.39694416]
[1760694722979,0.002,3746.9,3746.8,5.1900336]
[1760694723179,0.002,3746.9,3746.8,6.22535013]
[1760694723380,0.002,3746.9,3746.8,6.66335013]
[1760694723576,1e-08,3747.3,3747.2,2.66865926]
[1760694723776,1e-08,3747.3,3747.2,7.31614585]
[1760694724086,1e-08,3747.3,3747.2,11.17605926]
[1760694724287,1e-08,3747.3,3747.2,37.95130458]
[1760694724612,1e-08,3748.4,3748.3,5.0294761]
[1760694724811,1e-08,3748.4,3748.3,7.7894761]
[1760694725176,0.46560001,3748.4,3748.3,4.3958761]
[1760694725408,0.46560001,3748.4,3748.3,2.6678761]
[1760694726377,0.46560001,3748.4,3747.9,2.76]
[1760694726719,1.728,3748.1,3745.9,0.1627]
[1760694726893,1e-08,3748.4,3747.0,2.66879434]
[1760694726894,2.66832283,3747.7,3747.0,2.66879434]
[1760694727217,0.4606,3747.6,3746.3,2.76]
[1760694727414,2.66830322,3747.7,3746.7,2.66897297]
[1760694727603,0.2199,3746.8,3746.3,2.76]
[1760694727914,0.2199,3746.8,3746.0,2.759]
[1760694728117,0.04651525,3747.8,3746.7,2.6690154]
[1760694728322,0.04651525,3747.8,3746.8,0.6336]
[1760694728619,0.2199,3748.0,3747.6,2.66836771]
[1760694728819,0.2199,3748.0,3747.6,2.66830364]
[1760694729223,0.2199,3748.0,3747.0,2.6688017]
[1760694729224,0.4606,3747.9,3747.0,2.6688017]
[1760694729540,0.4606,3747.8,3746.9,2.66881103]
[1760694729830,2.66849714,3747.5,3746.5,2.759]
[1760694730036,0.4606,3747.4,3746.7,2.66897428]
[1760694730189,0.4715,3747.3,3746.2,2.759]
[1760694730396,0.4606,3747.2,3746.9,2.66887107]
[1760694730614,0.4606,3747.1,3746.9,2.66887107]
[1760694730926,0.4606,3747.0,3746.9,2.66887107]
[1760694731295,0.4606,3747.0,3746.8,2.66888711]
[1760694731496,0.6805,3746.9,3746.8,2.66888711]
[1760694731722,0.2199,3746.9,3746.8,2.66888711]
[1760694732120,0.6805,3746.9,3746.8,2.66888711]
[1760694732321,0.6805,3746.9,3746.5,0.001]
[1760694732544,0.4606,3746.8,3746.5,2.67010669]
[1760694732743,0.4606,3746.7,3746.5,2.67010669]
[1760694733032,0.2199,3746.9,3746.5,0.001]
[1760694733033,0.4606,3746.6,3746.5,0.001]
[1760694733861,2.6686587,3747.3,3746.5,0.001]
[1760694733862,0.4606,3747.5,3746.7,4.3970154]
[1760694733997,0.2199,3748.0,3746.7,4.3970154]
[1760694733998,0.4606,3747.3,3746.7,0.43980154]
[1760694734197,0.4606,3747.3,3746.9,2.66886999]
[1760694734407,0.4606,3747.2,3746.9,2.66886999]
[1760694734615,0.4606,3747.1,3746.9,2.66886999]
[1760694734849,0.4606,3747.5,3746.7,0.00676961]
[1760694735136,0.2199,3748.0,3746.5,0.1338]
[1760694735137,0.6805,3748.0,3747.6,2.66831795]
[1760694735348,0.2199,3748.0,3747.9,2.66816083]
[1760694735725,1e-08,3748.4,3748.3,2.6678761]
[1760694736108,1e-08,3748.4,3748.3,2.8006761]
[1760694737341,1e-08,3748.4,3748.3,10.1888141]
[1760694737513,1e-08,3748.4,3748.3,5.6002761]
[1760694739244,1e-08,3748.4,3748.3,7.9212761]
[1760694739405,1e-08,3748.4,3748.3,7.2876761]
[1760694739606,1e-08,3748.4,3748.3,8.29945204]
[1760694740047,1e-08,3748.4,3748.3,6.57145204]
[1760694740351,1e-08,3748.4,3748.3,8.29945204]
[1760694740658,0.45730001,3748.4,3748.3,0.1328]
[1760694740807,0.45730001,3748.4,3748.2,2.66792883]
[1760694741011,1e-08,3748.4,3748.3,2.6678761]
[1760694741210,1e-08,3748.4,3748.3,2.8006761]
[1760694741710,0.44970001,3748.4,3748.3,2.8006761]
[1760694741907,0.44970001,3748.4,3747.8,1.728]
[1760694742131,0.44970001,3748.4,3748.0,0.1328]
[1760694742332,0.4497,3748.3,3748.0,0.1328]
[1760694742733,0.4497,3748.3,3747.5,2.758]
[1760694742940,0.4497,3748.2,3747.6,0.1328]
[1760694743144,0.4497,3748.2,3747.9,2.66813989]
[1760694743355,0.4497,3748.1,3747.7,2.66826847]
[1760694743538,0.2139,3747.8,3747.7,2.66824893]
[1760694744042,0.4497,3748.0,3747.9,2.66816083]
[1760694744253,0.2139,3747.8,3746.2,0.4577]
[1760694744547,0.4497,3748.3,3746.9,2.66887293]
[1760694744847,0.4497,3748.3,3747.8,2.66820917]
[1760694745150,0.2139,3747.9,3747.8,2.66823202]
[1760694745650,0.6636,3747.9,3747.8,2.66823202]
[1760694745847,0.6636,3747.9,3747.0,2.758]
[1760694746023,0.6636,3747.9,3747.3,1.728]
[1760694746223,0.6636,3747.9,3747.1,0.4645873]
[1760694746224,0.6636,3747.9,3747.8,2.66823202]
[1760694746429,0.2139,3747.9,3747.8,2.66823202]
[1760694747251,0.6636,3747.9,3747.7,2.66827631]
[1760694747427,0.6636,3747.9,3747.5,2.66841243]
[1760694747747,0.6636,3747.9,3747.1,2.1659]
[1760694747748,0.41853883,3748.1,3748.0,4.39608964]
[1760694747927,1e-08,3748.4,3748.3,2.6678761]
[1760694750342,0.44970001,3748.4,3747.6,0.001]
[1760694750638,0.2139,3747.7,3747.6,2.66937442]
[1760694750853,0.2139,3748.0,3747.6,0.001]
[1760694751073,0.2131,3748.0,3747.6,0.001]
[1760694751276,0.4497,3747.9,3747.8,2.66820893]
[1760694751632,1e-08,3748.4,3747.6,2.66931336]
[1760694751833,0.4497,3748.3,3747.6,0.001]
[1760694752037,0.4497,3748.3,3747.6,2.66937442]
[1760694752038,0.2139,3747.7,3747.6,2.66937442]
[1760694752487,0.6636,3747.7,3747.6,0.001]
[1760694755774,3.33190322,3747.7,3747.6,0.001]
[1760694755977,3.93191156,3747.7,3747.6,0.001]
[1760694756696,5.79136135,3747.7,3747.6,0.001]
[1760694757000,6.84365615,3747.7,3747.6,0.001]
[1760694758194,6.07860636,3747.7,3747.6,0.001]
[1760694758581,3.41030314,3747.7,3747.6,0.001]
[1760694758786,2.85681775,3747.7,3747.6,0.001]
[1760694758975,3.79712097,3747.7,3747.6,0.001]
[1760694759305,3.37842617,3747.7,3747.6,0.001]
[1760694760593,3.79707755,3747.7,3747.6,0.001]
[1760694760811,4.18995981,3747.7,3747.6,0.001]
[1760694761509,1.52165659,3747.7,3747.6,0.001]
[1760694761710,0.67907433,3747.7,3747.6,0.001]
[1760694762284,3.34737755,3747.7,3747.6,0.001]
[1760694762876,3.79707755,3747.7,3747.6,0.001]
[1760694764616,0.46517433,3747.7,3747.6,0.001]
[1760694764912,3.13347755,3747.7,3747.6,0.001]
[1760694765276,0.46517433,3747.7,3747.6,0.001]
[1760694765682,0.04652295,3747.7,3747.6,0.001]
[1760694767819,0.418606,3747.8,3747.6,0.001]